bitfinex/quotes_ETHUSD_20250802
["timestamp","ask_amount","ask_price","bid_price","bid_amount"]
[1754103706037,0.001,3530.1,3529.9,0.8825]
[1754103706210,0.001,3530.1,3530.0,0.38825]
[1754103706412,0.001,3530.1,3530.0,1.27075]
[1754103706622,0.001,3530.1,3530.0,1.44067861]
[1754103706938,0.001,3530.1,3530.0,4.44067861]
[1754103707246,0.001,3530.1,3530.0,1.44067861]
[1754103708203,0.001,3530.1,3530.0,1.96235]
[1754103708632,0.001,3530.1,3530.0,4.96235]
[1754103709324,0.001,3530.1,3530.0,7.79521118]
[1754103712519,0.001,3530.1,3530.0,3.52985]
[1754103713622,0.001,3530.1,3530.0,3.98505]
[1754103714230,0.001,3530.1,3530.0,0.1416]
[1754103714633,0.4539,3530.1,3530.0,0.1416]
[1754103715516,0.001,3530.1,3530.0,0.1416]
[1754103716756,0.4539,3530.1,3530.0,0.1416]
[1754103717061,0.8968,3530.1,3529.9,0.1416]
[1754103717260,0.4529,3530.0,3529.9,0.1416]
[1754103717459,0.001,3530.1,3529.9,0.1416]
[1754103718960,0.001,3530.1,3529.9,0.5968]
[1754103719257,0.001,3530.1,3529.9,0.66702941]
[1754103719559,0.001,3530.1,3530.0,7.70186412]
[1754103719731,0.001,3530.1,3530.0,7.84346412]
[1754103720927,0.001,3530.1,3530.0,5.01060294]
[1754103721134,0.001,3530.1,3530.0,3.6916]
[1754103721328,0.001,3530.1,3530.0,3.1416]
[1754103721648,0.001,3530.1,3530.0,4.6439]
[1754103721849,0.001,3530.1,3530.0,3.6916]
[1754103723352,0.001,3530.1,3530.0,4.6439]
[1754103723553,0.001,3530.1,3530.0,5.41992065]
[1754103723750,0.001,3530.1,3530.0,5.39159204]
[1754103723967,0.001,3530.1,3530.0,5.41992065]
[1754103724167,0.001,3530.1,3530.0,8.25278183]
[1754103724332,0.001,3530.1,3530.0,8.22445322]
[1754103725770,0.001,3530.1,3530.0,5.39159204]
[1754103725967,0.001,3530.1,3530.0,9.25749204]
[1754103726171,0.001,3530.1,3530.0,4.43929204]
[1754103726377,0.4539,3530.1,3530.0,3.1416]
[1754103728361,0.001,3530.1,3530.0,3.16992861]
[1754103729035,0.001,3530.1,3530.0,7.50508979]
[1754103729238,0.001,3530.1,3530.0,4.6439]
[1754103729470,0.001,3530.1,3530.0,4.1468]
[1754103729662,0.001,3530.1,3530.0,4.87549815]
[1754103730640,0.001,3530.1,3530.0,8.68898794]
[1754103730864,0.001,3530.1,3530.0,8.66065933]
[1754103731902,0.001,3530.1,3530.0,4.87549815]
[1754103732549,0.4539,3530.1,3530.0,4.32549815]
[1754103732759,0.4539,3530.1,3530.0,7.5036]
[1754103733776,0.4539,3530.1,3530.0,3.1416]
[1754103734092,0.8968,3530.1,3530.0,3.1416]
[1754103734458,0.8968,3530.1,3530.0,3.0]
[1754103737768,0.001,3530.1,3530.0,3.4971]
[1754103737953,0.001,3530.1,3530.0,4.74064302]
[1754103738161,0.001,3530.1,3530.0,4.76897163]
[1754103738373,0.001,3530.1,3530.0,8.1235042]
[1754103739609,0.001,3530.1,3530.0,5.29064302]
[1754103739812,0.001,3530.1,3530.0,4.33834302]
[1754103740382,0.8968,3530.1,3530.0,3.0]
[1754103741183,0.8968,3530.1,3529.5,4.36]
[1754103741385,0.8958,3530.0,3529.5,4.36]
[1754103741584,0.8958,3530.0,3529.2,1e-08]
[1754103741585,0.891,3529.9,3529.4,3.0]
[1754103741879,0.891,3529.8,3529.4,3.0]
[1754103742108,0.891,3529.7,3529.4,3.0]
[1754103742313,0.4379,3529.7,3529.4,3.0]
[1754103742521,0.4531,3529.6,3529.4,3.0]
[1754103742719,0.4379,3529.7,3529.4,3.0]
[1754103743020,0.4531,3529.5,3529.4,3.0]
[1754103743513,0.891,3529.5,3529.2,1e-08]
[1754103743720,0.4379,3529.4,3529.2,1e-08]
[1754103743918,0.891,3529.4,3529.2,1e-08]
[1754103744082,0.001,3530.1,3529.2,1e-08]
[1754103744283,0.4531,3529.6,3529.2,1e-08]
[1754103744716,0.4379,3529.5,3529.2,1e-08]
[1754103744911,0.4531,3529.5,3529.2,1e-08]
[1754103745221,0.001,3530.1,3529.2,1e-08]
[1754103745222,0.4531,3529.8,3529.2,1e-08]
[1754103746089,0.4379,3529.7,3529.2,1e-08]
[1754103746490,0.4531,3529.6,3529.2,1e-08]
[1754103746900,0.4531,3529.5,3529.2,1e-08]
[1754103747105,0.891,3529.5,3529.2,1e-08]
[1754103747390,0.4531,3529.4,3529.2,1e-08]
[1754103747723,0.4531,3529.4,3529.2,0.14160001]
[1754103748034,0.5947,3529.7,3529.2,0.14160001]
[1754103748887,0.5947,3529.7,3529.2,0.16993504]
[1754103749205,0.1416,3529.7,3529.2,0.16993504]
[1754103749406,0.1416,3529.9,3529.4,0.1416]
[1754103749604,0.4531,3529.8,3529.4,0.1416]
[1754103750388,0.1416,3529.9,3529.4,0.1416]
[1754103750714,0.4531,3529.7,3529.4,0.1416]
[1754103751388,0.4531,3529.7,3529.2,0.02833504]
[1754103751389,0.4531,3529.7,3529.3,3.0]
[1754103751589,0.891,3529.9,3529.6,0.1416]
[1754103751921,0.4531,3529.8,3529.6,0.1416]
[1754103752386,0.4541,3530.1,3529.7,0.02833101]
[1754103752588,0.001,3530.1,3529.6,0.1416]
[1754103752787,0.001,3530.1,3530.0,0.1416]
[1754103753103,0.001,3530.1,3529.2,0.55000001]
[1754103753296,0.001,3530.1,3529.7,0.4407]
[1754103753622,0.001,3530.1,3530.0,0.1416]
[1754103758145,0.4541,3530.1,3530.0,0.1416]
[1754103758296,0.892,3530.1,3530.0,0.1416]
[1754103758828,0.4541,3530.1,3530.0,0.1416]
[1754103759330,0.001,3530.1,3530.0,0.1416]
[1754103760531,0.892,3530.1,3530.0,0.1416]
[1754103761938,0.4541,3530.1,3530.0,0.1416]
[1754103762135,0.001,3530.1,3530.0,0.1416]
[1754103763816,0.4541,3530.1,3530.0,0.1416]
[1754103764228,0.892,3530.1,3530.0,0.1416]
[1754103765160,0.4541,3530.1,3530.0,0.1416]
[1754103765522,0.892,3530.1,3530.0,0.1416]
[1754103765735,0.892,3530.1,3529.7,0.1416]
[1754103765931,0.891,3530.0,3529.7,0.1416]
[1754103766445,0.891,3529.9,3529.7,0.1416]
[1754103766767,0.891,3529.8,3529.7,0.1416]
[1754103768466,0.001,3530.1,3529.7,0.1416]
[1754103768644,0.891,3530.0,3529.7,0.1416]
[1754103768854,0.4531,3529.9,3529.7,0.1416]
[1754103769451,0.001,3530.1,3529.7,0.1416]
[1754103769774,0.001,3530.1,3529.7,0.5823]
[1754103770071,0.001,3530.1,3529.9,0.1416]
[1754103770873,0.001,3530.1,3530.0,0.16992861]
[1754103771578,0.001,3530.1,3530.0,0.1416]
[1754103773282,0.001,3530.1,3530.0,1.6332]
[1754103775870,0.001,3530.1,3530.0,1.66152861]
[1754103776074,0.001,3530.1,3530.0,5.12015617]
[1754103777611,0.001,3530.1,3530.0,9.49548478]
[1754103777774,0.001,3530.1,3530.0,12.30001735]
[1754103777969,0.001,3530.1,3530.0,9.46715617]
[1754103778981,0.001,3530.1,3530.0,12.30001735]
[1754103781229,0.001,3530.1,3530.0,8.52555617]
[1754103781536,0.9396,3530.1,3530.0,7.4886]
[1754103782626,0.001,3530.1,3530.0,7.4886]
[1754103783422,0.4824,3530.1,3530.0,7.4886]
[1754103784021,0.4824,3530.1,3530.0,3.1416]
[1754103785296,0.9396,3530.1,3530.0,3.1416]
[1754103788242,0.4824,3530.1,3530.0,3.1416]
[1754103790939,0.4824,3530.1,3530.0,3.0916]
[1754103791330,0.9396,3530.1,3530.0,3.0916]
[1754103794142,0.9396,3530.1,3530.0,3.0]
[1754103794646,0.4824,3530.1,3530.0,3.0]
[1754103796670,0.001,3530.1,3530.0,3.0]
[1754103797731,0.001,3530.1,3530.0,4.03216832]
[1754103798473,0.001,3530.1,3530.0,4.17376832]
[1754103799355,0.4824,3530.1,3530.0,3.1416]
[1754103799662,0.9396,3530.1,3530.0,3.1416]
[1754103800873,0.001,3530.1,3530.0,3.1416]
[1754103801972,0.001,3530.1,3530.0,4.4722]
[1754103802166,0.001,3530.1,3530.0,4.1422]
[1754103802560,0.001,3530.1,3530.0,12.13595448]
[1754103802764,0.001,3530.1,3530.0,9.7536933]
[1754103802967,0.001,3530.1,3530.0,10.2252933]
[1754103803150,0.001,3530.1,3530.0,13.05815448]
[1754103806760,0.4479,3531.0,3530.4,0.55]
[1754103806961,0.4479,3531.0,3530.6,3.0]
[1754103807156,0.001,3531.1,3530.9,0.1416]
[1754103807362,0.4342,3531.0,3530.9,0.1416]
[1754103808270,0.001,3531.1,3530.9,0.1416]
[1754103808471,0.4352,3531.1,3530.9,0.1416]
[1754103808706,0.4342,3531.0,3530.9,0.1416]
[1754103808912,0.9201,3531.0,3530.9,0.1416]
[1754103809265,0.001,3531.1,3530.9,0.1416]
[1754103809497,0.9201,3531.0,3530.9,0.1416]
[1754103810306,0.4859,3531.0,3530.9,0.1416]
[1754103810596,0.001,3531.1,3530.9,0.1416]
[1754103810978,0.4859,3531.0,3530.9,0.1416]
[1754103811379,0.001,3531.1,3530.9,0.1416]
[1754103812022,0.001,3531.1,3530.9,0.89036]
[1754103812490,0.4869,3531.1,3530.9,0.89036]
[1754103813122,0.001,3531.1,3530.9,0.89036]
[1754103813332,0.4859,3531.0,3530.9,0.89036]
[1754103813713,0.4859,3531.0,3530.9,1.03196]
[1754103813915,0.9201,3531.0,3530.9,1.03196]
[1754103814118,0.9201,3531.0,3530.9,0.1416]
[1754103814429,0.9201,3531.0,3530.6,0.851039]
[1754103814589,0.9201,3530.9,3530.7,0.1416]
[1754103814793,0.9201,3530.8,3530.7,0.1416]
[1754103815194,0.9201,3530.8,3530.5,0.1416]
[1754103815496,0.1416,3530.4,3529.8,0.851111]
[1754103815707,0.1416,3530.2,3529.7,0.1416]
[1754103815932,0.9201,3530.1,3529.7,0.1416]
[1754103816103,0.1416,3530.2,3529.7,0.1416]
[1754103816440,0.9201,3530.0,3529.7,0.1416]
[1754103816616,0.1416,3530.2,3529.7,0.1416]
[1754103816926,0.9201,3529.9,3529.7,0.1416]
[1754103817126,0.4342,3529.9,3529.7,0.1416]
[1754103817297,0.4859,3529.8,3529.7,0.1416]
[1754103818317,0.4342,3530.6,3529.7,1.42892706]
[1754103818523,0.4859,3530.4,3529.7,1.90052706]
[1754103818813,0.4859,3530.4,3530.1,0.1416]
[1754103819013,0.4342,3530.3,3530.1,0.1416]
[1754103819645,0.9201,3530.2,3529.5,3.0]
[1754103819849,0.9201,3530.1,3529.9,0.1416]
[1754103820147,0.9201,3530.0,3529.9,0.1416]
[1754103821912,0.9201,3530.0,3529.7,0.1416]
[1754103822112,0.9201,3529.9,3529.7,0.1416]
[1754103822344,0.9201,3529.8,3529.7,0.1416]
[1754103822853,1.0617,3529.8,3529.2,1e-08]
[1754103823167,1.48934072,3529.7,3529.2,1e-08]
[1754103823365,0.1416,3529.3,3529.2,1e-08]
[1754103823860,1.0617,3529.3,3529.2,1e-08]
[1754103825979,0.6275,3529.3,3529.2,1e-08]
[1754103826188,0.4859,3529.6,3529.2,1e-08]
[1754103826349,0.4859,3529.6,3529.2,0.14160001]
[1754103826548,0.9201,3529.5,3529.2,0.14160001]
[1754103826944,0.4859,3529.5,3529.2,0.14160001]
[1754103827149,0.1416,3529.8,3529.2,1.06380001]
[1754103827361,0.4859,3530.0,3529.2,0.92220001]
[1754103827556,0.1416,3529.9,3529.4,0.1416]
[1754103827781,0.4859,3529.8,3529.4,0.1416]
[1754103828075,0.4859,3529.7,3529.4,0.1416]
[1754103828643,0.9201,3529.6,3529.2,1e-08]
[1754103828849,0.1416,3529.3,3529.2,1e-08]
[1754103829356,1.0617,3529.3,3529.2,1e-08]
[1754103830348,0.4859,3529.7,3529.2,1e-08]
[1754103830574,0.1416,3529.5,3529.2,1e-08]
[1754103831567,0.4727,3530.0,3529.2,1e-08]
[1754103831766,0.4527,3529.9,3529.3,0.4595]
[1754103832085,0.5943,3529.9,3529.4,0.1416]
[1754103834018,0.1416,3529.9,3529.4,0.1416]
[1754103834184,4.346,3530.1,3529.5,0.98493262]
[1754103834383,4.346,3530.1,3529.5,0.9566]
[1754103834591,4.346,3530.1,3529.5,0.4595]
[1754103834896,4.7987,3530.1,3529.7,0.1416]
[1754103835084,0.4527,3530.0,3529.7,0.1416]
[1754103835616,0.1416,3530.2,3529.7,0.6011]
[1754103835981,0.4527,3530.2,3529.7,1.0982]
[1754103836220,11.2956,3530.3,3529.8,0.4595]
[1754103836426,4.4876,3530.3,3529.8,1.35257762]
[1754103836579,4.4876,3530.3,3530.0,0.1416]
[1754103836580,4.346,3530.3,3530.0,0.1416]
[1754103836783,0.4527,3530.3,3530.0,0.1416]
[1754103837216,0.9254,3530.2,3530.0,0.1416]
[1754103837400,0.9254,3530.1,3529.3,3.851322]
[1754103837600,0.4527,3530.0,3529.7,0.1416]
[1754103837803,0.9254,3530.0,3529.7,0.1416]
[1754103837986,0.4727,3530.0,3529.7,0.1416]
[1754103838186,0.4527,3529.9,3529.7,0.1416]
[1754103838515,0.4727,3530.0,3529.7,0.1416]
[1754103838516,0.4527,3530.0,3529.7,0.1416]
[1754103838685,0.4527,3530.0,3529.7,0.92700842]
[1754103839305,0.1416,3530.2,3529.7,0.92700842]
[1754103839505,0.4527,3529.9,3529.7,0.92700842]
[1754103840423,0.4527,3529.8,3529.7,0.92700842]
[1754103841421,0.9254,3529.8,3529.4,0.8696422]
[1754103841592,0.9254,3529.7,3529.6,0.1416]
[1754103841793,0.9254,3529.7,3529.2,1e-08]
[1754103842099,0.9254,3529.6,3529.4,0.1416]
[1754103842306,0.4527,3529.5,3529.4,0.1416]
[1754103842807,0.4527,3529.7,3529.4,0.1416]
[1754103843131,0.4527,3529.6,3529.4,0.1416]
[1754103843827,0.6143,3529.9,3529.2,1e-08]
[1754103843828,0.1416,3529.9,3529.2,1e-08]
[1754103844035,0.9254,3529.5,3529.2,0.14160001]
[1754103844533,0.9254,3529.4,3529.2,1e-08]
[1754103845039,0.4527,3529.4,3529.2,1e-08]
[1754103845831,0.4527,3529.3,3529.2,1e-08]
[1754103846194,0.4527,3529.8,3529.2,0.95660001]
[1754103846529,0.9254,3529.8,3529.2,1e-08]
[1754103846902,0.46307072,3530.5,3529.2,1e-08]
[1754103846903,0.9254,3529.7,3529.2,1e-08]
[1754103847085,1.067,3529.7,3529.2,0.14160001]
[1754103847289,0.9254,3529.6,3529.2,0.14160001]
[1754103847804,0.1416,3529.7,3529.2,0.14160001]
[1754103847805,0.9254,3529.5,3529.2,0.14160001]
[1754103848105,0.4527,3529.4,3529.2,0.14160001]
[1754103848305,0.4727,3529.3,3529.2,0.14160001]
[1754103848528,0.9254,3529.3,3529.2,1e-08]
[1754103850442,0.4527,3529.3,3529.2,1e-08]
[1754103850640,0.9254,3529.3,3529.2,1e-08]
[1754103855130,0.4527,3529.3,3529.2,1e-08]
[1754103856450,0.9254,3529.3,3529.2,1e-08]
[1754103856942,0.4527,3529.6,3529.2,1e-08]
[1754103857242,0.1416,3529.5,3529.2,1e-08]
[1754103857545,0.4527,3529.8,3529.2,1e-08]
[1754103857725,0.1416,3529.9,3529.4,0.1416]
[1754103858038,0.1416,3529.9,3529.4,1.5110535]
[1754103858342,0.1416,3529.9,3529.4,1.0515535]
[1754103858542,0.5943,3529.9,3529.4,1.0515535]
[1754103858746,0.4527,3529.8,3529.4,0.1416]
[1754103858949,0.4527,3529.8,3529.4,0.99301]
[1754103860424,0.1416,3529.9,3529.5,0.4595]
[1754103860938,0.4527,3529.8,3529.4,3.99301]
[1754103861133,0.4527,3529.7,3529.4,3.99301]
[1754103861338,0.4527,3529.6,3529.4,3.99301]
[1754103861934,0.4527,3529.6,3529.4,0.99301]
[1754103863753,0.4527,3529.6,3529.4,0.1416]
[1754103863950,0.4587,3529.8,3529.4,0.6143]
[1754103864975,0.4587,3529.7,3529.4,0.6143]
[1754103865155,0.9058,3529.6,3529.4,0.6143]
[1754103865331,0.9058,3529.5,3529.2,1e-08]
[1754103865666,0.9058,3529.5,3529.2,0.14160001]
[1754103865866,0.9058,3529.4,3529.2,0.75590001]
[1754103866066,0.4587,3529.3,3529.2,0.75590001]
[1754103866890,0.4587,3529.3,3529.2,0.61430001]
[1754103867034,0.9058,3529.3,3529.2,0.61430001]
[1754103867341,0.9058,3529.3,3529.2,1e-08]
[1754103870431,0.4587,3529.3,3529.2,1e-08]
[1754103870631,1.13924707,3530.2,3529.2,3.00000001]
[1754103870853,0.1416,3529.6,3529.2,3.88770001]
[1754103871052,0.1416,3529.6,3529.3,1.81045523]
[1754103871260,0.1416,3529.6,3529.3,2.27055523]
[1754103871456,0.1416,3529.6,3529.3,1.81045523]
[1754103871661,0.1416,3529.7,3529.3,1.81045523]
[1754103871846,0.6003,3529.7,3529.3,1.38285523]
[1754103872050,0.4587,3529.6,3529.3,1.38285523]
[1754103875080,0.4587,3530.1,3529.5,9.79725224]
[1754103875371,0.6003,3530.1,3529.5,9.93885224]
[1754103875750,0.4587,3530.0,3529.5,9.93885224]
[1754103875961,0.4587,3529.9,3529.5,9.93885224]
[1754103876142,0.4587,3529.8,3529.5,9.93885224]
[1754103876340,0.4587,3529.8,3529.5,10.39755224]
[1754103876543,0.9058,3530.0,3529.5,10.39755224]
[1754103876765,0.4587,3530.0,3529.5,11.28525224]
[1754103877072,0.4587,3530.0,3529.5,12.99762955]
[1754103877676,0.4587,3530.0,3529.6,0.4276]
[1754103877872,0.1416,3530.1,3529.6,0.8877]
[1754103878042,0.6003,3530.1,3529.6,0.8877]
[1754103878370,0.9058,3530.0,3529.5,12.10992955]
[1754103878550,0.1416,3530.1,3529.5,10.39755224]
[1754103878754,0.9058,3529.9,3529.5,10.39755224]
[1754103878947,0.4471,3529.9,3529.5,10.39755224]
[1754103879152,0.4587,3529.8,3529.5,10.39755224]
[1754103880270,0.4587,3530.0,3529.5,10.39755224]
[1754103880475,0.4587,3530.0,3529.6,1.95845075]
[1754103880678,0.5887,3530.1,3529.5,10.82515224]
[1754103880854,0.4587,3529.9,3529.5,10.39755224]
[1754103881049,0.4587,3529.8,3529.5,10.39755224]
[1754103881781,1.0474,3530.1,3529.5,10.85765224]
[1754103881957,0.6003,3530.1,3529.5,11.28525224]
[1754103882158,0.6003,3530.1,3529.6,2.00121075]
[1754103882456,0.6003,3530.1,3529.7,3.0]
[1754103884347,0.4587,3530.4,3529.8,0.8877]
[1754103884652,0.1416,3530.2,3529.8,0.4276]
[1754103884857,0.1416,3530.2,3529.7,3.1416]
[1754103885052,0.6003,3530.2,3529.7,3.5692]
[1754103885258,0.6003,3530.2,3529.7,5.6972099]
[1754103885883,0.1416,3530.2,3529.7,5.6972099]
[1754103886080,0.4587,3530.1,3529.7,5.2371099]
[1754103886249,0.5887,3530.2,3529.7,4.8095099]
[1754103886450,0.9058,3530.1,3529.7,4.8095099]
[1754103886752,0.4587,3530.0,3529.7,4.8095099]
[1754103887683,0.6003,3530.2,3529.7,4.8095099]
[1754103887883,0.4587,3530.1,3529.7,4.8095099]
[1754103888382,0.4587,3530.0,3529.7,4.8095099]
[1754103888678,0.1416,3530.2,3529.7,4.8095099]
[1754103888886,0.4587,3530.7,3530.1,3.0]
[1754103889048,0.1416,3530.6,3530.5,9.79725224]
[1754103889881,0.1416,3530.6,3530.5,12.79725224]
[1754103893582,0.1426,3531.0,3530.6,3.0]
[1754103893785,0.1426,3531.0,3530.6,3.4545]
[1754103893982,0.1426,3531.0,3530.6,5.38110062]
[1754103894186,0.001,3531.0,3530.9,3.0]
[1754103894351,0.001,3531.0,3530.9,3.1416]
[1754103894555,0.001,3531.0,3530.9,4.08092139]
[1754103894753,0.001,3531.0,3530.9,4.22352139]
[1754103894954,0.001,3531.0,3530.9,5.79364202]
[1754103895155,0.001,3531.0,3530.9,5.76532063]
[1754103895354,0.001,3531.0,3530.9,6.31532063]
[1754103898193,0.001,3531.0,3530.9,9.14745974]
[1754103898515,0.001,3531.0,3530.9,6.31532063]
[1754103899405,0.001,3531.0,3530.9,9.14745974]
[1754103899702,0.001,3531.4,3531.0,3.55]
[1754103899868,0.49,3532.2,3531.4,3.55]
[1754103900068,0.49,3532.2,3532.0,9.79725224]
[1754103900383,0.001,3532.2,3532.1,3.0]
[1754103900590,0.001,3532.2,3532.1,3.1416]
[1754103900956,0.001,3532.2,3532.1,5.53131535]
[1754103901153,0.001,3532.2,3532.1,5.67291535]
[1754103901355,0.001,3532.2,3532.1,4.76191535]
[1754103901556,0.001,3532.2,3532.1,4.21191535]
[1754103901789,0.49,3532.2,3532.1,3.1416]
[1754103902660,0.001,3532.2,3532.1,3.1416]
[1754103904075,0.49,3532.2,3532.1,3.1416]
[1754103904809,0.49,3532.2,3532.1,3.6316]
[1754103905299,0.001,3532.2,3532.1,3.6316]
[1754103905460,0.9581,3532.2,3531.6,3.0]
[1754103905656,0.98557072,3532.1,3531.5,0.1416]
[1754103905913,0.1416,3531.6,3531.5,0.489]
[1754103906065,1.0987,3531.6,3531.5,0.489]
[1754103906564,1.0987,3531.6,3530.6,3.1416]
[1754103906762,0.1416,3531.1,3530.6,4.85033216]
[1754103906994,0.489,3531.0,3530.6,1.85033216]
[1754103907315,0.489,3530.9,3530.7,3.0]
[1754103907515,0.4681,3531.0,3530.7,3.0]
[1754103907807,0.489,3530.8,3530.7,3.0]
[1754103907988,0.489,3530.8,3530.6,9.93885224]
[1754103908296,0.489,3530.8,3530.7,3.0]
[1754103908803,0.9571,3531.0,3530.6,0.1416]
[1754103908968,0.4681,3531.0,3530.6,0.1416]
[1754103909165,0.489,3530.9,3530.6,0.1416]
[1754103909700,0.98557072,3530.8,3530.6,0.1416]
[1754103909913,0.489,3530.7,3530.5,0.1416]
[1754103911176,0.1416,3531.1,3530.5,0.1416]
[1754103911177,0.6097,3531.1,3530.5,0.1416]
[1754103911393,0.489,3531.0,3530.5,0.1416]
[1754103911803,0.489,3530.9,3530.5,0.1416]
[1754103912497,0.489,3530.8,3530.5,0.1416]
[1754103913183,0.489,3530.7,3530.5,0.1416]
[1754103913389,0.489,3530.6,3530.5,0.1416]
[1754103916772,0.489,3530.8,3530.5,0.1416]
[1754103917496,0.001,3531.0,3530.6,0.911]
[1754103917902,0.49,3531.0,3530.6,0.911]
[1754103918111,0.49,3531.0,3530.6,0.4545]
[1754103918311,0.49,3531.0,3530.5,0.1416]
[1754103918312,0.001,3531.0,3530.5,0.1416]
[1754103918475,0.001,3531.0,3530.9,0.1416]
[1754103920208,0.49,3531.0,3530.9,0.1416]
[1754103920717,0.9581,3531.0,3530.4,3.0]
[1754103920926,0.4691,3531.0,3530.7,0.1416]
[1754103921138,0.4691,3531.0,3530.2,0.911]
[1754103921139,0.9571,3530.9,3530.6,0.1416]
[1754103921422,0.489,3530.8,3530.6,0.1416]
[1754103922553,0.001,3531.0,3530.6,0.1416]
[1754103923211,0.001,3531.0,3530.7,0.4369]
[1754103923582,0.001,3531.0,3530.7,0.55]
[1754103923783,0.001,3531.0,3530.9,0.6916]
[1754103924332,0.001,3531.4,3530.9,1.6174]
[1754103924507,0.001,3531.4,3530.9,0.1416]
[1754103924710,0.001,3531.4,3531.3,0.1416]
[1754103926026,0.4561,3531.4,3531.3,0.1416]
[1754103926399,0.9154,3531.4,3531.3,0.1416]
[1754103926724,0.4561,3531.4,3531.2,0.1416]
[1754103927453,0.001,3531.4,3531.2,0.1416]
[1754103927661,0.1416,3532.0,3531.3,1.64571818]
[1754103927811,0.001,3532.2,3531.4,5.37427182]
[1754103928138,0.001,3532.2,3531.9,0.1416]
[1754103928536,0.4561,3532.2,3531.9,0.1416]
[1754103928845,0.4561,3532.2,3532.0,3.0]
[1754103929753,0.001,3532.2,3532.0,3.0]
[1754103930118,0.001,3532.2,3532.0,4.43014532]
[1754103930838,0.001,3532.2,3532.1,0.1416]
[1754103933520,0.001,3532.6,3532.2,0.55]
[1754103933720,0.001,3532.6,3532.5,3.0]
[1754103934029,0.4561,3532.6,3532.5,3.1416]
[1754103934225,0.9154,3532.6,3532.5,3.1416]
[1754103935925,0.9154,3532.6,3532.1,9.77895318]
[1754103936127,0.9144,3532.5,3532.2,3.0]
[1754103936341,0.9144,3532.4,3532.2,3.0]
[1754103936559,0.1426,3532.6,3532.2,3.0]
[1754103936758,0.1426,3532.6,3532.1,9.92055318]
[1754103936759,0.9144,3532.3,3531.7,0.1416]
[1754103936926,0.001,3532.6,3532.0,3.0]
[1754103936927,0.5967,3532.4,3532.0,3.0]
[1754103937128,0.4551,3532.3,3532.0,3.0]
[1754103937464,0.001,3532.6,3532.0,3.9258]
[1754103937754,0.5977,3532.6,3532.1,0.1416]
[1754103937967,0.1426,3532.6,3532.1,0.1416]
[1754103938258,0.9144,3532.5,3532.1,0.1416]
[1754103938553,0.5977,3532.6,3532.4,9.77895318]
[1754103938723,0.4551,3532.5,3532.4,12.77895318]
[1754103941355,0.1426,3532.6,3532.5,3.0]
[1754103941564,0.4561,3532.6,3532.5,3.0]
[1754103943174,0.001,3532.6,3532.5,3.0]
[1754103943384,0.4561,3532.6,3532.5,3.0]
[1754103944372,0.9154,3532.6,3532.5,3.0]
[1754103946152,0.001,3532.6,3532.5,3.0]
[1754103947862,0.001,3532.6,3532.5,3.9258]
[1754103948069,0.001,3532.6,3532.5,4.38463532]
[1754103948239,4.6921,3532.9,3532.5,4.38463532]
[1754103948435,0.4551,3532.8,3532.5,4.52623532]
[1754103948678,4.6963,3532.9,3532.5,4.52623532]
[1754103948871,0.4551,3532.7,3532.5,3.1416]
[1754103949675,4.237,3532.9,3532.5,3.1416]
[1754103949838,0.4551,3532.6,3532.5,3.0]
[1754103950183,0.9144,3532.6,3532.5,3.0]
[1754103950864,0.4551,3532.6,3532.5,3.0]
[1754103951571,0.6295,3532.8,3532.5,3.0]
[1754103951779,0.4879,3532.7,3532.5,3.0]
[1754103951963,0.1416,3532.8,3532.5,3.0]
[1754103952173,4.336,3532.9,3532.5,4.92915532]
[1754103952363,4.336,3532.9,3532.8,12.77895318]
[1754103953257,5.2826,3532.9,3532.8,12.77895318]
[1754103953462,0.4879,3533.1,3532.9,3.0]
[1754103953645,4.336,3533.0,3532.9,3.0]
[1754103954482,4.8239,3533.0,3532.9,3.0]
[1754103954774,5.2826,3533.0,3532.9,3.0]
[1754103955468,6.50856707,3533.0,3532.4,3.0]
[1754103955782,0.51637072,3532.9,3532.6,0.1416]
[1754103955945,0.4587,3532.8,3532.6,0.1416]
[1754103956496,0.97507072,3532.7,3532.2,3.0]
[1754103956775,5.31007072,3532.6,3532.1,0.002]
[1754103957078,4.335,3532.5,3532.1,0.002]
[1754103957397,0.1416,3532.2,3532.1,0.002]
[1754103957891,1.0882,3532.2,3532.1,0.002]
[1754103959993,0.1416,3532.2,3532.1,12.78095318]
[1754103960197,0.1416,3532.2,3532.1,3.002]
[1754103961665,0.1416,3532.4,3532.1,3.002]
[1754103961875,0.9466,3532.3,3532.1,3.002]
[1754103962197,0.4879,3532.2,3532.1,3.002]
[1754103962406,0.1416,3532.4,3532.2,3.0]
[1754103962695,0.9466,3532.3,3532.1,0.002]
[1754103963283,0.9466,3532.2,3532.1,0.002]
[1754103963481,0.4879,3532.2,3532.1,0.002]
[1754103963790,0.1416,3532.4,3532.1,0.4975]
[1754103963952,0.1416,3532.4,3532.1,0.9677]
[1754103964157,4.335,3532.5,3532.2,0.9657]
[1754103964506,0.001,3533.0,3532.2,0.9657]
[1754103964507,0.001,3533.0,3532.5,3.0]
[1754103964661,4.335,3532.9,3532.5,3.0]
[1754103964961,4.335,3532.9,3532.6,0.9657]